[Event "Serbian League Women 2024"]
[Site "Bajina Basta"]
[Date "2024.09.30"]
[Round "4.1"]
[White "Savitha Shri B"]
[Black "Badelka, Olga"]
[Result "1-0"]
[ECO "D02"]
[WhiteElo "2348"]
[BlackElo "2430"]
[Annotator "TA"]
[PlyCount "101"]
[EventDate "2024.09.26"]
[EventType "team-tourn"]
[EventCountry "SRB"]
[SourceTitle "playchess.com"]
[Source "ChessBase"]
[SourceQuality "1"]
[TimeControl "40/5400+30:1800+30"]

{[%evp 9,101,0,12,9,14,11,12,21,52,45,46,29,40,45,36,28,46,44,49,17,45,43,57,46,53,14,11,12,11,11,18,11,41,9,57,-1,0,-81,-84,-99,-93,-87,-90,-95,-82,-100,-100,-105,-110,-114,-95,-131,-131,-131,-131,-131,-116,-106,-99,-111,-44,-53,0,0,3,4,27,25,27,0,118,115,116,119,79,118,118,104,112,100,325,326,312,285,447,445,800,797,29975,29977,29985,29986,29989,29990]} 1. d4 {[%emt 0:00:12]} d5 {[%emt 0:00:13]} 2. Bf4 {[%emt 0:00:06]} Nf6 {[%emt 0:00:10]} 3. e3 {[%emt 0:00:15]} c5 {[%emt 0:07:25]} 4. Nf3 {[%emt 0:00:41]} Nc6 {[%emt 0:02:16]} 5. Nbd2 {[%emt 0:00:08]} cxd4 {[%emt 0:03:07]} 6. exd4 {[%emt 0:00:54]} Bf5 {[%emt 0:03:45][%cal Bc8f5,Bf5c2,Bc2e4][%mdl 32]} 7. c3 {[%emt 0:01:01]} e6 {[%emt 0:00:28]} 8. Qb3 {[%emt 0:03:33] The position is equal.} Qb6 {[%emt 0:01:00]} 9. Qxb6 {[%emt 0:02:32]} axb6 {[%emt 0:00:05]} 10. Nh4 {[%emt 0:09:01]} Bc2 {[%emt 0:01:18]} 11. Rc1 {[%emt 0:02:43]} Be4 {[%emt 0:01:54]} 12. f3 {[%emt 0:02:38]} Bg6 {[%emt 0:00:04]} 13. a3 {[%emt 0:08:00]} Kd7 {[%emt 0:00:07]} 14. Bb5 {[%emt 0:06:48]} Bd6 {[%emt 0:00:18]} 15. Bxd6 {[%emt 0:02:53]} Kxd6 {[%emt 0:00:04]} 16. Nxg6 {[%emt 0:05:16]} hxg6 {[%emt 0:00:06]} 17. Kf2 {[%emt 0:00:59]} g5 {[%emt 0:01:53]} 18. h3 {[%emt 0:03:49]} Ne8 {[%emt 0:09:12]} 19. Rhe1 {[%emt 0:03:55]} Nc7 {[%emt 0:03:52]} 20. Bd3 {[%emt 0:03:06]} b5 {[%emt 0:01:13]} 21. Ra1 {[%emt 0:06:14]} Ra7 {[%emt 0:06:13]} (21... e5 $11) 22. Rh1 {[%emt 0:04:50]} (22. Nb3 $14) 22... Na5 {[%emt 0:02:30]} 23. a4 {[%emt 0:04:56]} (23. Rhc1 $11) 23... Nc4 $17 {[%emt 0:05:37]} 24. Bxc4 {[%emt 0:01:01]} bxc4 {[%emt 0:00:04]} 25. b3 {[%emt 0:01:01]} cxb3 {[%emt 0:06:33]} 26. Nxb3 {[%emt 0:02:11]} b6 {[%emt 0:00:28] Prevents Nc5.} 27. Rhb1 {[%emt 0:09:24]} Rha8 $1 {[%emt 0:00:19]} 28. a5 {[%emt 0:01:44]} bxa5 {[%emt 0:00:26]} 29. Nc5 {[%emt 0:00:32]} Kc6 {[%emt 0:10:09]} 30. Rb3 {[%emt 0:00:15]} Nb5 {[%emt 0:08:12]} 31. Rab1 {[%emt 0:00:04]} Nd6 {[%emt 0:00:21]} 32. Na4 {[%emt 0:05:53]} Rb7 {[%emt 0:02:38]} 33. Rxb7 {[%emt 0:00:09]} Nxb7 {[%emt 0:00:04][%mdl 4096] Endgame. KRN-KRN} 34. Kg3 {[%emt 0:00:17]} Kc7 {[%emt 0:20:30]} (34... Nd6 $17 {...Nc4 is the strong threat.} 35. Kg4 f6 36. Rb6+ Kd7) 35. Kg4 $15 {[%emt 0:01:36]} f6 {[%emt 0:01:45]} (35... Nd6 $15 36. Kxg5 Re8) 36. Kh5 $1 $11 {[%emt 0:00:44]} Ra6 {[%emt 0:00:11]} 37. Kg6 {[%emt 0:01:32]} Rc6 {[%emt 0:00:03]} 38. Kxg7 {[%emt 0:02:40]} e5 $1 {[%emt 0:00:44]} 39. Rb3 {[%emt 0:03:47]} e4 {[%emt 0:02:51]} (39... Nd8 $11 {keeps the balance.}) 40. fxe4 $16 {[%emt 0:00:49]} dxe4 {[%emt 0:00:02]} 41. d5 $1 {[%emt 0:04:16]} Rc4 {[%emt 0:10:50] [#]} 42. Nb2 {[%emt 0:01:23]} ({Much weaker is} 42. Nb6 Rc5 $15) 42... Rc5 {[%emt 0:00:14] [#]} 43. c4 {[%emt 0:01:20]} f5 {[%emt 0:11:55]} 44. Kf6 {[%emt 0:01:09] White is more active.} g4 $2 {[%emt 0:03:50] A mistake that costs the game.} (44... f4 $16) 45. Kxf5 $18 {[%emt 0:03:44]} gxh3 {[%emt 0:00:03]} 46. gxh3 {[%emt 0:01:46][%cal Of5e5]} Nd6+ {[%emt 0:00:15]} (46... Kb8 {was called for.} 47. Kxe4 Rc8) 47. Ke6 {[%emt 0:03:54]} a4 {[%emt 0:04:29]} (47... Nb7 $142 48. Ke5 e3 49. Rxe3 Kb8) 48. Nxa4 {[%emt 0:00:40]} Rxc4 {[%emt 0:00:03]} 49. Nb6 {[%emt 0:01:10] White mates.} e3 {[%emt 0:01:39]} 50. Nxc4 {[%emt 0:00:23]} Nxc4 {[%emt 0:00:21]} 51. Rc3 {[%emt 0:00:04] Weighted Error Value: White=0.10 (very precise) /Black=0.35.  Loses game:     	---       	Black=1      Mistake:       	White=2     	Black=6      Inaccurate:     	White=5     	Black=4      OK:         	White=17    	Black=11     Best:        	White=7     	Black=2      Strong:       	White=2     	Black=2} 1-0

[Event "Serbian League Women 2024"]
[Site "Bajina Basta"]
[Date "2024.09.30"]
[Round "4.2"]
[White "Zimina, Olga"]
[Black "Toncheva, Nadya"]
[Result "1/2-1/2"]
[ECO "D02"]
[WhiteElo "2302"]
[BlackElo "2301"]
[Annotator "RC"]
[PlyCount "136"]
[EventDate "2024.09.26"]
[EventType "team-tourn"]
[EventCountry "SRB"]
[SourceTitle "playchess.com"]
[Source "ChessBase"]
[SourceQuality "1"]
[TimeControl "40/5400+30:1800+30"]

1. d4 {[%emt 0:00:04]} d5 {[%emt 0:00:10]} 2. g3 {[%emt 0:00:05]} Nf6 {[%emt 0:00:05]} 3. Bg2 {[%emt 0:00:04]} c6 {[%emt 0:00:22]} 4. Nf3 {[%emt 0:00:59]} Bf5 {[%emt 0:00:11]} 5. Nh4 {[%emt 0:00:25]} Be4 {[%emt 0:00:04]} 6. f3 {[%emt 0:00:03]} Bg6 {[%emt 0:00:04]} 7. c3 {[%emt 0:00:11]} Nbd7 {[%emt 0:00:34]} 8. O-O {[%emt 0:05:02]} e5 {[%emt 0:05:22]} 9. Be3 {[%emt 0:05:44]} Be7 {[%emt 0:04:50]} 10. Nd2 {[%emt 0:01:17]} O-O {[%emt 0:09:28]} 11. Bf2 {[%emt 0:08:27]} exd4 {[%emt 0:04:26]} 12. cxd4 {[%emt 0:01:47]} c5 {[%emt 0:09:09]} 13. dxc5 {[%emt 0:02:38]} Bxc5 {[%emt 0:00:16]} 14. Bh3 {[%emt 0:02:29]} Re8 {[%emt 0:05:12]} 15. Rc1 {[%emt 0:04:50]} Be3 {[%emt 0:07:34]} 16. Bxe3 {[%emt 0:07:26]} Rxe3 {[%emt 0:00:05]} 17. Ng2 {[%emt 0:01:41]} Re7 {[%emt 0:01:02]} 18. Rf2 {[%emt 0:01:06]} Qb6 {[%emt 0:02:02]} 19. Nb3 {[%emt 0:07:28]} Ne5 {[%emt 0:06:35]} 20. Qd4 {[%emt 0:01:02]} Nc4 {[%emt 0:04:40]} 21. Nf4 {[%emt 0:13:04]} Qxd4 {[%emt 0:13:01]} 22. Nxd4 {[%emt 0:00:10]} Ne3 {[%emt 0:00:28]} 23. Ng2 {[%emt 0:02:42]} Nxg2 {[%emt 0:04:27]} 24. Kxg2 {[%emt 0:05:28]} Ne8 {[%emt 0:02:27]} 25. Rff1 {[%emt 0:00:23]} Rd8 {[%emt 0:01:59]} 26. Rc5 {[%emt 0:03:05]} Rd6 {[%emt 0:10:33]} 27. Kf2 {[%emt 0:07:07]} Kf8 {[%emt 0:00:15]} 28. Rfc1 {[%emt 0:00:26]} a6 {[%emt 0:00:25]} 29. Rc8 {[%emt 0:10:05]} h6 {[%emt 0:02:19]} 30. Rb8 {[%emt 0:00:57]} Bh7 {[%emt 0:00:50]} 31. Rcc8 {[%emt 0:01:19]} g6 {[%emt 0:03:08]} 32. Rd8 {[%emt 0:07:05]} Rxd8 {[%emt 0:00:07]} 33. Rxd8 {[%emt 0:02:21]} f5 {[%emt 0:00:25]} 34. Rxd5 {[%emt 0:00:00]} Bg8 {[%emt 0:00:07]} 35. Ra5 {[%emt 0:00:00]} Nc7 {[%emt 0:02:04]} 36. Bf1 {[%emt 0:00:32]} Nd5 {[%emt 0:00:58]} 37. Rc5 {[%emt 0:00:09]} Ne3 {[%emt 0:00:27]} 38. b3 {[%emt 0:00:32]} Kg7 {[%emt 0:00:53]} 39. h4 {[%emt 0:00:09]} Kf6 {[%emt 0:01:11]} 40. Bh3 {[%emt 0:00:44]} h5 {[%emt 0:00:37]} 41. Nc2 {[%emt 0:04:38]} Nd5 {[%emt 0:04:40]} 42. e3 {[%emt 0:00:35]} Rc7 {[%emt 0:07:12]} 43. Rxc7 {[%emt 0:00:56]} Nxc7 {[%emt 0:00:05]} 44. Ke2 {[%emt 0:03:39]} Ke5 {[%emt 0:01:45]} 45. Kd2 {[%emt 0:00:55]} a5 {[%emt 0:03:13]} 46. Bf1 {[%emt 0:05:58]} Bd5 {[%emt 0:02:32]} 47. Ne1 {[%emt 0:00:05]} a4 {[%emt 0:00:25]} 48. Bc4 {[%emt 0:03:24]} axb3 {[%emt 0:03:26]} 49. Bxd5 {[%emt 0:01:21]} b2 {[%emt 0:02:29]} 50. Nd3+ {[%emt 0:00:17]} Kf6 {[%emt 0:01:01]} 51. Nxb2 {[%emt 0:00:43]} Nxd5 {[%emt 0:00:04]} 52. a4 {[%emt 0:01:45]} g5 {[%emt 0:01:30]} 53. Nc4 {[%emt 0:05:38]} gxh4 {[%emt 0:00:12]} 54. gxh4 {[%emt 0:00:03]} Ke6 {[%emt 0:00:40]} 55. Kd3 {[%emt 0:00:53]} f4 {[%emt 0:03:10]} 56. e4 {[%emt 0:00:25]} Ne7 {[%emt 0:00:17]} 57. Na5 {[%emt 0:00:57]} Ng6 {[%emt 0:01:14]} 58. Nxb7 {[%emt 0:00:08]} Nxh4 {[%emt 0:00:04]} 59. Ke2 {[%emt 0:00:19]} Ng6 {[%emt 0:00:50]} 60. a5 {[%emt 0:06:59]} Kd7 {[%emt 0:00:05]} 61. a6 {[%emt 0:00:12]} Kc7 {[%emt 0:00:03]} 62. Nc5 {[%emt 0:01:19]} Kb6 {[%emt 0:00:05]} 63. Kf2 {[%emt 0:00:07]} Ka7 {[%emt 0:01:34]} 64. Kg2 {[%emt 0:00:02]} Kb6 {[%emt 0:00:06]} 65. Kh3 {[%emt 0:00:25]} Ne5 {[%emt 0:01:00]} 66. Kg2 {[%emt 0:00:33]} Ng6 {[%emt 0:00:05]} 67. Kf2 {[%emt 0:00:36]} Ka7 {[%emt 0:00:11]} 68. Kg2 {[%emt 0:01:29]} Kb6 {[%emt 0:07:40]} 1/2-1/2

[Event "Serbian League Women 2024"]
[Site "Bajina Basta"]
[Date "2024.09.30"]
[Round "4.3"]
[White "Grozdanovic, Anastasia"]
[Black "Vujovic, Vera"]
[Result "1/2-1/2"]
[ECO "D11"]
[WhiteElo "2041"]
[BlackElo "2175"]
[Annotator "RC"]
[PlyCount "73"]
[EventDate "2024.09.26"]
[EventType "team-tourn"]
[EventCountry "SRB"]
[SourceTitle "playchess.com"]
[Source "ChessBase"]
[SourceQuality "1"]
[TimeControl "40/5400+30:1800+30"]

1. d4 {[%emt 0:00:04]} d5 {[%emt 0:00:02]} 2. c4 {[%emt 0:00:11]} c6 {[%emt 0:00:03]} 3. Nf3 {[%emt 0:00:05]} Nf6 {[%emt 0:00:04]} 4. Nbd2 {[%emt 0:00:04]} Bf5 {[%emt 0:04:45]} 5. Nh4 {[%emt 0:00:06]} Be6 {[%emt 0:01:13]} 6. e3 {[%emt 0:12:32]} g6 {[%emt 0:05:32]} 7. b3 {[%emt 0:00:05]} Bg7 {[%emt 0:00:35]} 8. Bb2 {[%emt 0:01:26]} O-O {[%emt 0:05:45]} 9. Bd3 {[%emt 0:03:51]} Nbd7 {[%emt 0:13:05]} 10. O-O {[%emt 0:02:47]} Rc8 {[%emt 0:03:56]} 11. h3 {[%emt 0:05:53]} Ne8 {[%emt 0:02:25]} 12. Qc2 {[%emt 0:14:14]} f5 {[%emt 0:02:41]} 13. Nhf3 {[%emt 0:03:36]} Nd6 {[%emt 0:14:30]} 14. Ng5 {[%emt 0:03:25]} Bf7 {[%emt 0:00:48]} 15. Nxf7 {[%emt 0:00:29]} Rxf7 {[%emt 0:00:35]} 16. Ba3 {[%emt 0:03:33]} c5 {[%emt 0:17:31]} 17. Nf3 {[%emt 0:03:58]} e5 {[%emt 0:15:39]} 18. dxe5 {[%emt 0:05:21]} Nxe5 {[%emt 0:00:14]} 19. Nxe5 {[%emt 0:00:24]} Bxe5 {[%emt 0:00:05]} 20. Rad1 {[%emt 0:02:40]} d4 {[%emt 0:00:44]} 21. exd4 {[%emt 0:03:14]} Bxd4 {[%emt 0:00:10]} 22. Bb2 {[%emt 0:05:14]} Bxb2 {[%emt 0:00:20]} 23. Qxb2 {[%emt 0:00:06]} Qf6 {[%emt 0:00:42]} 24. Qxf6 {[%emt 0:05:38]} Rxf6 {[%emt 0:00:02]} 25. Rfe1 {[%emt 0:00:34]} Kf8 {[%emt 0:01:32]} 26. Re5 {[%emt 0:01:52]} b6 {[%emt 0:03:03]} 27. Rd5 {[%emt 0:02:15]} Re8 {[%emt 0:02:06]} 28. a3 {[%emt 0:00:40]} a5 {[%emt 0:01:11]} 29. b4 {[%emt 0:02:49]} axb4 {[%emt 0:00:14]} 30. axb4 {[%emt 0:00:03]} cxb4 {[%emt 0:00:05]} 31. Rb1 {[%emt 0:00:40]} Ne4 {[%emt 0:01:47]} 32. Bxe4 {[%emt 0:03:08]} Rxe4 {[%emt 0:01:58]} 33. Rxb4 {[%emt 0:00:04]} Rc6 {[%emt 0:01:41]} 34. Rd8+ {[%emt 0:00:24]} Kg7 {[%emt 0:00:34]} 35. Rb8 {[%emt 0:00:17]} Rexc4 {[%emt 0:00:13]} 36. Rxc4 {[%emt 0:00:06]} Rxc4 {[%emt 0:00:05]} 37. Rxb6 {[%emt 0:00:03]} 1/2-1/2

[Event "Serbian League Women 2024"]
[Site "Bajina Basta"]
[Date "2024.09.30"]
[Round "4.4"]
[White "Nestorovic, Katarina"]
[Black "Mihajlovic, Milena"]
[Result "1/2-1/2"]
[ECO "C18"]
[WhiteElo "2038"]
[BlackElo "2065"]
[Annotator "RC"]
[PlyCount "142"]
[EventDate "2024.09.26"]
[EventType "team-tourn"]
[EventCountry "SRB"]
[SourceTitle "playchess.com"]
[Source "ChessBase"]
[SourceQuality "1"]
[TimeControl "40/5400+30:1800+30"]

1. e4 {[%emt 0:00:05]} e6 {[%emt 0:00:11]} 2. d4 {[%emt 0:00:13]} d5 {[%emt 0:00:04]} 3. Nc3 {[%emt 0:00:05]} Bb4 {[%emt 0:00:28]} 4. e5 {[%emt 0:00:39]} c5 {[%emt 0:03:46]} 5. a3 {[%emt 0:00:20]} Bxc3+ {[%emt 0:01:16]} 6. bxc3 {[%emt 0:00:06]} Ne7 {[%emt 0:00:19]} 7. Qg4 {[%emt 0:01:06]} Qc7 {[%emt 0:00:33]} 8. Bd2 {[%emt 0:08:03]} Nbc6 {[%emt 0:10:51]} 9. Nf3 {[%emt 0:00:56]} Nf5 {[%emt 0:07:09]} 10. Bd3 {[%emt 0:02:13]} h5 {[%emt 0:04:01]} 11. Qg5 {[%emt 0:01:57]} Nce7 {[%emt 0:05:17]} 12. Nh4 {[%emt 0:19:08]} Nxh4 {[%emt 0:10:30]} 13. Qxh4 {[%emt 0:00:19]} c4 {[%emt 0:00:30]} 14. Be2 {[%emt 0:00:25]} Bd7 {[%emt 0:01:37]} 15. a4 {[%emt 0:04:28]} Bc6 {[%emt 0:03:48]} 16. Bg5 {[%emt 0:04:17]} Nf5 {[%emt 0:05:02]} 17. Qh3 {[%emt 0:00:49]} Qa5 {[%emt 0:00:47]} 18. O-O {[%emt 0:00:52]} Kd7 {[%emt 0:00:21]} 19. Rfd1 {[%emt 0:11:23]} Rag8 {[%emt 0:01:43]} 20. Qf3 {[%emt 0:04:32]} Kc8 {[%emt 0:05:27]} 21. Rdb1 {[%emt 0:04:14]} Rh7 {[%emt 0:08:10]} 22. Bf1 {[%emt 0:06:35]} h4 {[%emt 0:06:49]} 23. g4 {[%emt 0:05:11]} hxg3 {[%emt 0:00:24]} 24. fxg3 {[%emt 0:00:23]} Qc7 {[%emt 0:00:58]} 25. Bg2 {[%emt 0:06:40]} Rgh8 {[%emt 0:01:38]} 26. h4 {[%emt 0:00:28]} Rg8 {[%emt 0:01:12]} 27. Bh3 {[%emt 0:00:21]} Qd7 {[%emt 0:03:07]} 28. Rf1 {[%emt 0:01:16]} f6 {[%emt 0:00:21]} 29. Bxf5 {[%emt 0:02:33]} exf5 {[%emt 0:00:13]} 30. exf6 {[%emt 0:02:40]} gxf6 {[%emt 0:00:06]} 31. Bxf6 {[%emt 0:00:21]} Bxa4 {[%emt 0:01:52]} 32. Kh2 {[%emt 0:02:24]} Rf7 {[%emt 0:08:38]} 33. Bg5 {[%emt 0:03:43]} b6 {[%emt 0:03:28]} 34. Rxa4 {[%emt 0:03:37]} Qxa4 {[%emt 0:00:33]} 35. Qxd5 {[%emt 0:00:47]} Qxc2+ {[%emt 0:01:15]} 36. Kg1 {[%emt 0:01:03]} Rxg5 {[%emt 0:03:40]} 37. hxg5 {[%emt 0:00:23]} Qxc3 {[%emt 0:00:34]} 38. Qa8+ {[%emt 0:02:39]} Kd7 {[%emt 0:01:07]} 39. Qxa7+ {[%emt 0:01:44]} Ke8 {[%emt 0:00:13]} 40. Qb8+ {[%emt 0:00:14]} Kd7 {[%emt 0:00:45]} 41. Qe5 {[%emt 0:31:04]} f4 {[%emt 0:30:50]} 42. Qd5+ {[%emt 0:00:00]} Kc8 {[%emt 0:00:00]} 43. Qc6+ {[%emt 0:00:00]} Kd8 {[%emt 0:00:00]} 44. Qxb6+ {[%emt 0:00:00]} Kd7 {[%emt 0:00:00]} 45. Qb7+ {[%emt 0:00:00]} Kd6 {[%emt 0:00:00]} 46. Qb6+ {[%emt 0:00:00]} Kd7 {[%emt 0:00:00]} 47. Qb5+ {[%emt 0:00:00]} Ke7 {[%emt 0:00:00]} 48. Qc5+ {[%emt 0:00:00]} Ke8 {[%emt 0:00:00]} 49. Qc6+ {[%emt 0:00:00]} Kf8 {[%emt 0:00:00]} 50. gxf4 {[%emt 0:00:00]} Qxd4+ {[%emt 0:00:00]} 51. Kg2 {[%emt 0:00:00]} Kg7 {[%emt 0:00:00]} 52. Kg3 {[%emt 0:00:00]} c3 {[%emt 0:00:00]} 53. Qh6+ {[%emt 0:00:00]} Kg8 {[%emt 0:00:00]} 54. Qg6+ {[%emt 0:00:00]} Kf8 {[%emt 0:00:00]} 55. Qc2 {[%emt 0:00:00]} Qe3+ {[%emt 0:00:00]} 56. Kg4 {[%emt 0:00:00]} Re7 {[%emt 0:00:00]} 57. g6 {[%emt 0:02:52]} Qd2 {[%emt 0:01:54]} 58. Rf2 {[%emt 0:01:16]} Qd4 {[%emt 0:02:13]} 59. Qf5+ {[%emt 0:01:12]} Kg7 {[%emt 0:00:55]} 60. Rf1 {[%emt 0:00:16]} Qe4 {[%emt 0:02:36]} 61. Qxe4 {[%emt 0:03:21]} Rxe4 {[%emt 0:00:05]} 62. Kg5 {[%emt 0:00:12]} Rc4 {[%emt 0:00:14]} 63. f5 {[%emt 0:00:51]} Rc5 {[%emt 0:01:21]} 64. Rd1 {[%emt 0:00:46]} c2 {[%emt 0:00:36]} 65. Rc1 {[%emt 0:00:51]} Kf8 {[%emt 0:01:01]} 66. Kf6 {[%emt 0:00:15]} Rc6+ {[%emt 0:00:58]} 67. Ke5 {[%emt 0:00:46]} Kg7 {[%emt 0:00:08]} 68. Kd5 {[%emt 0:00:35]} Rc8 {[%emt 0:00:17]} 69. Ke6 {[%emt 0:00:33]} Rc6+ {[%emt 0:01:09]} 70. Ke7 {[%emt 0:00:48]} Rc7+ {[%emt 0:00:10]} 71. Kd6 {[%emt 0:00:12]} Rc8 {[%emt 0:00:10]} 1/2-1/2

[Event "Serbian League Women 2024"]
[Site "Bajina Basta"]
[Date "2024.09.30"]
[Round "4.5"]
[White "Muetsch, Annmarie"]
[Black "Aydin, Gulenay"]
[Result "0-1"]
[ECO "E07"]
[WhiteElo "2290"]
[BlackElo "2202"]
[Annotator "RC"]
[PlyCount "56"]
[EventDate "2024.09.26"]
[EventType "team-tourn"]
[EventCountry "SRB"]
[SourceTitle "playchess.com"]
[Source "ChessBase"]
[SourceQuality "1"]
[TimeControl "40/5400+30:1800+30"]

1. d4 {[%emt 0:00:13]} d5 {[%emt 0:00:07]} 2. c4 {[%emt 0:00:12]} e6 {[%emt 0:00:06]} 3. Nf3 {[%emt 0:00:08]} Nf6 {[%emt 0:00:09]} 4. g3 {[%emt 0:00:12]} Be7 {[%emt 0:01:20]} 5. Bg2 {[%emt 0:00:08]} O-O {[%emt 0:00:07]} 6. O-O {[%emt 0:00:07]} c6 {[%emt 0:00:51]} 7. Nc3 {[%emt 0:00:32]} Nbd7 {[%emt 0:00:55]} 8. Qd3 {[%emt 0:01:05]} b6 {[%emt 0:04:43]} 9. e4 {[%emt 0:01:02]} Ba6 {[%emt 0:00:33]} 10. b3 {[%emt 0:00:27]} dxe4 {[%emt 0:04:33]} 11. Nxe4 {[%emt 0:00:08]} b5 {[%emt 0:02:08]} 12. Nxf6+ {[%emt 0:17:36]} Bxf6 {[%emt 0:00:26]} 13. c5 {[%emt 0:15:36]} Nxc5 {[%emt 0:06:37]} 14. Qc2 {[%emt 0:00:34]} Nd7 {[%emt 0:02:25]} 15. Qxc6 {[%emt 0:01:22]} Nb6 {[%emt 0:02:23]} 16. Bf4 {[%emt 0:09:08]} Rc8 {[%emt 0:03:30]} 17. Qe4 {[%emt 0:00:11]} Nd5 {[%emt 0:02:45]} 18. Be5 {[%emt 0:01:46]} b4 {[%emt 0:00:49]} 19. Rfe1 {[%emt 0:01:12]} Qb6 {[%emt 0:03:17]} 20. h4 {[%emt 0:08:49]} h6 {[%emt 0:04:29]} 21. h5 {[%emt 0:05:44]} Rfd8 {[%emt 0:03:40]} 22. Bf1 {[%emt 0:05:53]} Bxf1 {[%emt 0:15:36]} 23. Kxf1 {[%emt 0:00:21]} Bxe5 {[%emt 0:00:38]} 24. dxe5 {[%emt 0:02:47]} Nc3 {[%emt 0:01:05]} 25. Qg4 {[%emt 0:05:47]} Rd3 {[%emt 0:02:14]} 26. Kg1 {[%emt 0:00:56]} Rcd8 {[%emt 0:03:07]} 27. Kg2 {[%emt 0:06:47]} Qb7 {[%emt 0:04:31]} 28. Re3 {[%emt 0:01:15]} R8d4 {[%emt 0:00:28]} 0-1

[Event "Serbian League Women 2024"]
[Site "Bajina Basta"]
[Date "2024.09.30"]
[Round "4.6"]
[White "Yildiz, Elif Zeren"]
[Black "Brunello, Marina"]
[Result "1-0"]
[ECO "B90"]
[WhiteElo "1934"]
[BlackElo "2348"]
[Annotator "RC"]
[PlyCount "47"]
[EventDate "2024.09.26"]
[EventType "team-tourn"]
[EventCountry "SRB"]
[SourceTitle "playchess.com"]
[Source "ChessBase"]
[SourceQuality "1"]
[TimeControl "40/5400+30:1800+30"]

1. e4 {[%emt 0:00:04]} c5 {[%emt 0:00:33]} 2. Nf3 {[%emt 0:00:06]} d6 {[%emt 0:00:05]} 3. d4 {[%emt 0:00:03]} cxd4 {[%emt 0:00:04]} 4. Nxd4 {[%emt 0:00:04]} Nf6 {[%emt 0:00:04]} 5. Nc3 {[%emt 0:00:04]} a6 {[%emt 0:00:02]} 6. Rg1 {[%emt 0:00:04]} h5 {[%emt 0:00:09]} 7. h3 {[%emt 0:00:05]} g6 {[%emt 0:00:22]} 8. Be3 {[%emt 0:00:05]} b5 {[%emt 0:00:24]} 9. Qe2 {[%emt 0:00:41]} Qa5 {[%emt 0:07:55]} 10. Nb3 {[%emt 0:02:35]} Qc7 {[%emt 0:00:45]} 11. O-O-O {[%emt 0:03:43]} Bg7 {[%emt 0:07:26]} 12. g4 {[%emt 0:05:17]} Bb7 {[%emt 0:02:11]} 13. Bg2 {[%emt 0:05:18]} Nc6 {[%emt 0:04:36]} 14. f4 {[%emt 0:07:08]} e6 {[%emt 0:08:08]} 15. e5 {[%emt 0:19:42]} dxe5 {[%emt 0:05:49]} 16. f5 {[%emt 0:01:49]} Nb4 {[%emt 0:10:36]} 17. fxe6 {[%emt 0:03:55]} Bxg2 {[%emt 0:02:23]} 18. Qxg2 {[%emt 0:03:36]} Qc6 {[%emt 0:01:39]} 19. exf7+ {[%emt 0:00:34]} Kxf7 {[%emt 0:00:21]} 20. g5 {[%emt 0:02:38]} Qxg2 {[%emt 0:02:57]} 21. Rxg2 {[%emt 0:00:02]} Nh7 {[%emt 0:00:13]} 22. Rf2+ {[%emt 0:00:47]} Kg8 {[%emt 0:00:05]} 23. Rd6 {[%emt 0:03:17]} Rc8 {[%emt 0:00:17]} 24. Na5 {[%emt 0:01:00]} 1-0

[Event "Serbian League Women 2024"]
[Site "Bajina Basta"]
[Date "2024.09.30"]
[Round "4.7"]
[White "Mehmed, Elif"]
[Black "Vujcic, Milena"]
[Result "1-0"]
[ECO "C77"]
[WhiteElo "2228"]
[BlackElo "2076"]
[Annotator "RC"]
[PlyCount "75"]
[EventDate "2024.09.26"]
[EventType "team-tourn"]
[EventCountry "SRB"]
[SourceTitle "playchess.com"]
[Source "ChessBase"]
[SourceQuality "1"]
[TimeControl "40/5400+30:1800+30"]

1. e4 {[%emt 0:00:04]} e5 {[%emt 0:00:04]} 2. Nf3 {[%emt 0:00:05]} Nc6 {[%emt 0:00:03]} 3. Bb5 {[%emt 0:00:05]} a6 {[%emt 0:00:04]} 4. Ba4 {[%emt 0:00:04]} Nf6 {[%emt 0:00:06]} 5. d3 {[%emt 0:00:08]} d6 {[%emt 0:00:09]} 6. c4 {[%emt 0:00:14]} g6 {[%emt 0:00:18]} 7. h3 {[%emt 0:00:13]} Bg7 {[%emt 0:00:07]} 8. Nc3 {[%emt 0:00:05]} Nd7 {[%emt 0:00:44]} 9. Bg5 {[%emt 0:01:01]} f6 {[%emt 0:02:11]} 10. Be3 {[%emt 0:00:07]} O-O {[%emt 0:01:01]} 11. O-O {[%emt 0:00:26]} f5 {[%emt 0:04:20]} 12. Bg5 {[%emt 0:00:06]} Bf6 {[%emt 0:08:02]} 13. Bh6 {[%emt 0:00:04]} Rf7 {[%emt 0:01:00]} 14. Nd5 {[%emt 0:00:17]} Nc5 {[%emt 0:01:24]} 15. Nxf6+ {[%emt 0:16:39]} Qxf6 {[%emt 0:00:09]} 16. Bg5 {[%emt 0:00:04]} Qg7 {[%emt 0:00:38]} 17. Bxc6 {[%emt 0:08:12]} bxc6 {[%emt 0:00:06]} 18. Be3 {[%emt 0:00:10]} Ne6 {[%emt 0:00:14]} 19. b4 {[%emt 0:10:04]} Bd7 {[%emt 0:10:53]} 20. Bd2 {[%emt 0:09:44]} g5 {[%emt 0:04:58]} 21. exf5 {[%emt 0:11:42]} Rxf5 {[%emt 0:00:10]} 22. Be3 {[%emt 0:00:04]} g4 {[%emt 0:10:33]} 23. hxg4 {[%emt 0:01:00]} Nf4 {[%emt 0:00:19]} 24. Nh2 {[%emt 0:09:30]} h5 {[%emt 0:14:25]} 25. f3 {[%emt 0:07:42]} hxg4 {[%emt 0:02:43]} 26. fxg4 {[%emt 0:00:34]} Raf8 {[%emt 0:00:59]} 27. Qd2 {[%emt 0:06:58]} Rg5 {[%emt 0:02:25]} 28. Rae1 {[%emt 0:02:34]} Bxg4 {[%emt 0:01:46]} 29. Bxf4 {[%emt 0:00:56]} exf4 {[%emt 0:00:09]} 30. Rxf4 {[%emt 0:00:23]} Bf5 {[%emt 0:10:55]} 31. Ref1 {[%emt 0:04:26]} Rf6 {[%emt 0:00:42]} 32. R1f2 {[%emt 0:00:10]} Qg6 {[%emt 0:02:26]} 33. Qe2 {[%emt 0:05:07]} Re6 {[%emt 0:05:14]} 34. Qd2 {[%emt 0:00:31]} Qh7 {[%emt 0:12:05]} 35. g4 {[%emt 0:03:37]} Rh6 {[%emt 0:00:49]} 36. Rxf5 {[%emt 0:00:19]} Rxg4+ {[%emt 0:02:58]} 37. Rg2 {[%emt 0:00:08]} Qxf5 {[%emt 0:00:11]} 38. Nxg4 {[%emt 0:00:27]} 1-0